[Event "2nd FIDE WCC Rapid G12"]
[Site "Minsk"]
[Date "2018.06.22"]
[Round "1"]
[White "Zvereva, Margarita"]
[Black "Nguyen, Le Cam Hien"]
[Result "1/2-1/2"]
[ECO "B77"]
[WhiteElo "1838"]
[BlackElo "1614"]
[Annotator "NA RC"]
[PlyCount "109"]
[EventDate "2018.06.22"]
[EventType "rapid"]
[EventCountry "BLR"]
[SourceTitle "playchess.com"]
[Source "ChessBase"]
[SourceQuality "1"]
[TimeControl "600+5"]

1. e4 {[%emt 0:00:00]} c5 {[%emt 0:00:02]} 2. Nf3 {[%emt 0:00:00]} d6 {[%emt 0:00:04]} 3. d4 {[%emt 0:00:00]} cxd4 {[%emt 0:00:03]} 4. Nxd4 {[%emt 0:00:03]} Nf6 {[%emt 0:00:03]} 5. Nc3 {[%emt 0:00:02]} g6 {[%emt 0:00:04]} 6. Be3 {[%emt 0:00:16]} Bg7 {[%emt 0:00:04]} 7. f3 {[%emt 0:00:07]} O-O {[%emt 0:00:07]} 8. Qd2 {[%emt 0:00:02]} Nc6 {[%emt 0:00:07]} 9. Bc4 {[%emt 0:00:09]} Bd7 {[%emt 0:00:08]} 10. h4 {[%emt 0:00:38] LiveBook: 921 Games} Rc8 {[%emt 0:00:14]} 11. Bb3 {[%emt 0:00:02]} a6 {[%emt 0:00:34] B77: Sizilianisch (Moderne Drachen-Variante)} (11... h5 $11 {keeps the balance.} 12. O-O-O Ne5 13. Kb1 Nc4 14. Bxc4 Rxc4 15. Nde2 Re8 16. Bh6 Bh8 17. g4 Qa5 18. gxh5 Qxh5 19. Bg5 Qxf3 20. Rdf1 Nxe4 21. Rxf3 Nxd2+ 22. Bxd2 Bc6 23. Rfh3 Bxh1 24. Rxh1 {½-½ (60) Vachier Lagrave,M (2796)-Grischuk,A (2761) Paris 2017}) 12. O-O-O {[%emt 0:00:23]} b5 {[%emt 0:00:07]} (12... Na5 $14) 13. h5 {[%emt 0:01:01]} Nxh5 {[%emt 0:01:44]} 14. g4 {[%emt 0:01:19]} Nxd4 {[%emt 0:03:00]} 15. Bxd4 {[%emt 0:00:15]} Bxd4 {[%emt 0:02:19]} 16. Qxd4 {[%emt 0:00:04]} Nf6 {[%emt 0:00:32]} 17. Nd5 $146 {[%emt 0:03:37]} ({Vorgänger:} 17. Qe3 $18 {bietet bessere Gewinnchancen.} Rxc3 18. Qxc3 Qc8 19. Qxc8 Bxc8 {0-1 (54) O'Brien,G (1326)-Ederer,K (2083) LSS email 2012}) 17... Nxd5 {[%emt 0:00:42]} 18. Bxd5 {[%emt 0:00:22]} (18. Qxd5 $16 e5 19. Qd2 (19. Qxd6 Qg5+ 20. Qd2 Qxd2+ 21. Rxd2 Be6 $16)) 18... Qc7 $2 {[%emt 0:00:34]} (18... e6 $14) 19. Qd2 {[%emt 0:00:50]} Be6 $2 {[%emt 0:00:06]} (19... e6) 20. Qh2 $2 {[%emt 0:00:53]} (20. c3 $18 {ist der präzise Gewinnweg.} h5 21. Bxe6 fxe6 22. gxh5) 20... h5 {[%emt 0:00:44]} 21. gxh5 {[%emt 0:00:05]} Bxd5 {[%emt 0:00:02]} 22. hxg6 {[%emt 0:01:01]} Qxc2+ {[%emt 0:00:21]} 23. Qxc2 {[%emt 0:00:02]} Rxc2+ {[%emt 0:00:02]} (23... Bxa2 {ist eine bessere Verteidigung.} 24. gxf7+ Kxf7) 24. Kxc2 {[%emt 0:00:01]} Be6 {[%emt 0:00:05]} 25. gxf7+ $18 {[%emt 0:00:21]} Kxf7 {[%emt 0:00:04]} 26. Rh7+ {[%emt 0:00:15]} Ke8 {[%emt 0:00:03]} 27. Rf1 {[%emt 0:00:10]} Bc4 {[%emt 0:00:07]} 28. Rf2 {[%emt 0:00:02]} Kd7 {[%emt 0:00:05]} 29. f4 {[%emt 0:00:06]} Rc8 {[%emt 0:00:08] [#]} 30. Kd2 $1 {[%emt 0:00:09]} Bxa2 {[%emt 0:00:07]} 31. f5 {[%emt 0:00:06]} Bb3 {[%emt 0:00:12]} 32. f6 {[%emt 0:00:06]} Re8 {[%emt 0:00:01]} 33. fxe7 {[%emt 0:00:07]} Rxe7 {[%emt 0:00:02]} 34. Rxe7+ {[%emt 0:00:02]} Kxe7 {[%emt 0:00:01]} 35. Kc3 {[%emt 0:00:01]} Be6 {[%emt 0:00:04]} 36. Rh2 {[%emt 0:00:08]} a5 {[%emt 0:00:05]} 37. Rh7+ {[%emt 0:00:03]} Kf6 {[%emt 0:00:04]} 38. Ra7 {[%emt 0:00:04]} a4 {[%emt 0:00:02]} 39. Rb7 {[%emt 0:00:04]} Bc4 {[%emt 0:00:04]} 40. Kd4 {[%emt 0:00:08]} Ke6 {[%emt 0:00:02]} 41. Rb6 {[%emt 0:00:04]} Ke7 {[%emt 0:00:04]} 42. Ke3 {[%emt 0:00:10]} Ke6 {[%emt 0:00:03]} 43. Kf4 {[%emt 0:00:02]} Kd7 {[%emt 0:00:04]} 44. Rb8 {[%emt 0:00:06]} Kc7 {[%emt 0:00:02]} 45. Rh8 {[%emt 0:00:02]} b4 {[%emt 0:00:08]} 46. Rh7+ {[%emt 0:00:09]} Kb6 {[%emt 0:00:05]} 47. Rh1 {[%emt 0:00:05]} a3 {[%emt 0:00:05]} 48. bxa3 {[%emt 0:00:03]} bxa3 {[%emt 0:00:01]} 49. Ra1 {[%emt 0:00:04]} a2 {[%emt 0:00:03]} 50. Kf5 {[%emt 0:00:06]} Kc5 {[%emt 0:00:01]} 51. e5 {[%emt 0:00:07]} dxe5 {[%emt 0:00:02]} 52. Kxe5 {[%emt 0:00:02]} Kb4 {[%emt 0:00:03]} 53. Kd4 {[%emt 0:00:05]} Kb3 {[%emt 0:00:06]} 54. Rxa2 {[%emt 0:00:03]} Kxa2 {[%emt 0:00:02]} 55. Kxc4 {[%emt 0:00:02]} 1/2-1/2

[Event "2nd FIDE WCC Rapid G12"]
[Site "Minsk"]
[Date "2018.06.22"]
[Round "1"]
[White "Krupnova, Anna"]
[Black "Zaruba, Anfisa"]
[Result "1-0"]
[ECO "D20"]
[WhiteElo "1761"]
[BlackElo "1313"]
[Annotator "NA RC"]
[PlyCount "117"]
[EventDate "2018.06.22"]
[EventType "rapid"]
[EventCountry "BLR"]
[SourceTitle "playchess.com"]
[Source "ChessBase"]
[SourceQuality "1"]
[TimeControl "600+5"]

1. d4 {[%emt 0:00:00]} d5 {[%emt 0:00:01]} 2. c4 {[%emt 0:00:01]} dxc4 {[%emt 0:00:01]} 3. e3 {[%emt 0:00:06]} b5 {[%emt 0:00:07]} 4. a4 {[%emt 0:00:15]} Bd7 {[%emt 0:00:41]} 5. axb5 {[%emt 0:00:27]} Bxb5 {[%emt 0:00:02]} 6. b3 {[%emt 0:01:20]} Ba6 {[%emt 0:02:12]} 7. bxc4 {[%emt 0:00:29]} Bb7 {[%emt 0:00:18]} 8. Nf3 {[%emt 0:00:35]} Nf6 {[%emt 0:00:09]} 9. Bd3 {[%emt 0:01:56]} e6 {[%emt 0:00:34]} 10. O-O {[%emt 0:00:41]} Bb4 {[%emt 0:00:39]} 11. Qa4+ {[%emt 0:00:57]} Nc6 {[%emt 0:00:15]} 12. Ne5 {[%emt 0:00:17]} Qd6 {[%emt 0:02:25]} 13. c5 {[%emt 0:01:44]} Bxc5 {[%emt 0:00:06]} 14. Bb5 {[%emt 0:01:06]} O-O {[%emt 0:03:27]} 15. Bxc6 {[%emt 0:00:36]} Bxc6 {[%emt 0:00:03]} 16. Qxc6 {[%emt 0:00:24]} Qxc6 {[%emt 0:00:01]} 17. Nxc6 {[%emt 0:00:01]} Bd6 {[%emt 0:00:03]} 18. Nc3 {[%emt 0:00:15]} Rae8 {[%emt 0:00:08]} 19. Rxa7 {[%emt 0:00:07]} e5 {[%emt 0:00:04]} 20. dxe5 {[%emt 0:00:09]} Rxe5 {[%emt 0:00:12]} 21. Nxe5 {[%emt 0:00:03]} Bxe5 {[%emt 0:00:02]} 22. Nb5 {[%emt 0:00:10]} c6 {[%emt 0:00:03]} 23. Nd4 {[%emt 0:00:02]} Bd6 {[%emt 0:00:02]} 24. Ba3 {[%emt 0:00:04]} c5 {[%emt 0:00:05]} 25. Nf5 {[%emt 0:00:03]} Bb8 {[%emt 0:00:05]} 26. Ra5 {[%emt 0:00:06]} Bc7 {[%emt 0:00:02]} 27. Rxc5 {[%emt 0:00:03]} Bd6 {[%emt 0:00:04]} 28. Nxd6 {[%emt 0:00:02]} Rd8 {[%emt 0:00:03]} 29. Rc8 {[%emt 0:00:03]} Rxc8 {[%emt 0:00:03]} 30. Nxc8 {[%emt 0:00:02]} h6 {[%emt 0:00:03]} 31. Rd1 {[%emt 0:00:02]} Kh7 {[%emt 0:00:02]} 32. Nb6 {[%emt 0:00:13]} Ne8 {[%emt 0:00:08]} 33. Rd7 {[%emt 0:00:04]} Nf6 {[%emt 0:00:05]} 34. Rxf7 {[%emt 0:00:03]} Nh5 {[%emt 0:00:03]} 35. g4 {[%emt 0:00:09]} Nf6 {[%emt 0:00:04]} 36. f3 {[%emt 0:00:04]} Ne8 {[%emt 0:00:03]} 37. Nd7 {[%emt 0:00:09]} Kg8 {[%emt 0:00:11]} 38. Rf8+ {[%emt 0:00:04]} Kh7 {[%emt 0:00:04]} 39. Rxe8 {[%emt 0:00:02]} Kg6 {[%emt 0:00:04]} 40. Ne5+ {[%emt 0:00:03]} Kf6 {[%emt 0:00:03]} 41. f4 {[%emt 0:00:11]} g5 {[%emt 0:00:28]} 42. Rf8+ {[%emt 0:00:11]} Kg7 {[%emt 0:00:05]} 43. Rf7+ {[%emt 0:00:05]} Kg8 {[%emt 0:00:05]} 44. Ra7 {[%emt 0:00:03]} Kh8 {[%emt 0:00:04]} 45. Ng6+ {[%emt 0:00:04]} Kg8 {[%emt 0:00:04]} 46. Ne5 {[%emt 0:00:10]} gxf4 {[%emt 0:00:04]} 47. exf4 {[%emt 0:00:02]} Kh8 {[%emt 0:00:02]} 48. Nf7+ {[%emt 0:00:07]} Kg7 {[%emt 0:00:03]} 49. Nxh6+ {[%emt 0:00:07]} Kxh6 {[%emt 0:00:02]} 50. Bf8+ {[%emt 0:00:02]} Kg6 {[%emt 0:00:03]} 51. h4 {[%emt 0:00:03]} Kf6 {[%emt 0:00:02]} 52. h5 {[%emt 0:00:02]} Ke6 {[%emt 0:00:02]} 53. h6 {[%emt 0:00:01]} Kd5 {[%emt 0:00:22]} 54. h7 {[%emt 0:00:03]} Ke4 {[%emt 0:00:03]} 55. h8=Q {[%emt 0:00:01]} Kxf4 {[%emt 0:00:03]} 56. Qf6+ {[%emt 0:00:04]} Kxg4 {[%emt 0:00:09]} 57. Rg7+ {[%emt 0:00:02]} Kh5 {[%emt 0:00:06]} 58. Qg6+ {[%emt 0:00:01]} Kh4 {[%emt 0:00:03]} 59. Qg4# {[%emt 0:00:02]} 1-0

[Event "2nd FIDE WCC Rapid G12"]
[Site "Minsk"]
[Date "2018.06.22"]
[Round "1"]
[White "Omonova, Umida"]
[Black "Mutina, Ksenia"]
[Result "1-0"]
[ECO "C08"]
[WhiteElo "1733"]
[BlackElo "1224"]
[Annotator "NA RC"]
[PlyCount "53"]
[EventDate "2018.06.22"]
[EventType "rapid"]
[EventCountry "BLR"]
[SourceTitle "playchess.com"]
[Source "ChessBase"]
[SourceQuality "1"]
[TimeControl "600+5"]

1. e4 {[%emt 0:00:00]} e6 {[%emt 0:00:01]} 2. d4 {[%emt 0:00:00]} d5 {[%emt 0:00:01]} 3. Nd2 {[%emt 0:00:01]} c5 {[%emt 0:00:04]} 4. exd5 {[%emt 0:00:03]} exd5 {[%emt 0:00:01]} 5. Ngf3 {[%emt 0:00:04]} cxd4 {[%emt 0:00:10]} 6. Nxd4 {[%emt 0:00:12]} Bc5 {[%emt 0:00:02]} 7. N2b3 {[%emt 0:00:03]} Bb6 {[%emt 0:00:02]} 8. Bb5+ {[%emt 0:00:18]} Bd7 {[%emt 0:00:03]} 9. O-O {[%emt 0:00:05]} Bxb5 {[%emt 0:00:04]} 10. Nxb5 {[%emt 0:00:03]} Nf6 {[%emt 0:00:07]} 11. Bg5 {[%emt 0:00:13]} O-O {[%emt 0:00:07]} 12. Bxf6 {[%emt 0:00:06]} Qxf6 {[%emt 0:00:04]} 13. Qxd5 {[%emt 0:00:03]} Qxb2 {[%emt 0:00:03]} 14. Qxb7 {[%emt 0:00:03]} Qe5 {[%emt 0:01:07]} 15. a4 {[%emt 0:00:27]} Na6 {[%emt 0:01:30]} 16. Qxa6 {[%emt 0:00:03]} Rab8 {[%emt 0:01:06]} 17. Na3 {[%emt 0:00:36]} Qf6 {[%emt 0:00:22]} 18. Qd3 {[%emt 0:00:07]} Rfd8 {[%emt 0:00:08]} 19. Qh3 {[%emt 0:00:20]} Rd6 {[%emt 0:00:19]} 20. Nc4 {[%emt 0:00:03]} Re6 {[%emt 0:00:51]} 21. Rad1 {[%emt 0:00:53]} Rbe8 {[%emt 0:00:15]} 22. Nxb6 {[%emt 0:00:08]} axb6 {[%emt 0:00:02]} 23. Qg3 {[%emt 0:00:22]} Re2 {[%emt 0:00:56]} 24. Nd4 {[%emt 0:00:12]} R2e4 {[%emt 0:00:08]} 25. c3 {[%emt 0:00:02]} g6 {[%emt 0:01:33]} 26. Qf3 {[%emt 0:00:09]} Qe7 {[%emt 0:00:09]} 27. g3 {[%emt 0:00:12]} 1-0

[Event "2nd FIDE WCC Rapid G12"]
[Site "Minsk"]
[Date "2018.06.22"]
[Round "1"]
[White "Dubovyk, Anastasiia"]
[Black "Nguyen, Hong Nhung"]
[Result "0-1"]
[ECO "B40"]
[WhiteElo "1721"]
[BlackElo "1518"]
[Annotator "NA RC"]
[PlyCount "84"]
[EventDate "2018.06.22"]
[EventType "rapid"]
[EventCountry "BLR"]
[SourceTitle "playchess.com"]
[Source "ChessBase"]
[SourceQuality "1"]
[TimeControl "600+5"]

1. e4 {[%emt 0:00:00]} c5 {[%emt 0:00:02]} 2. Nf3 {[%emt 0:00:00]} e6 {[%emt 0:00:02]} 3. c3 {[%emt 0:00:00]} Nf6 {[%emt 0:00:04]} 4. Bd3 {[%emt 0:00:02]} Be7 {[%emt 0:00:12]} 5. O-O {[%emt 0:00:05]} O-O {[%emt 0:00:03]} 6. Bc2 {[%emt 0:00:02]} Nc6 {[%emt 0:00:09]} 7. d4 {[%emt 0:00:10]} cxd4 {[%emt 0:00:08]} 8. cxd4 {[%emt 0:00:02]} Qc7 {[%emt 0:00:35]} 9. Nc3 {[%emt 0:00:08]} d6 {[%emt 0:00:16]} 10. h3 {[%emt 0:00:14]} a6 {[%emt 0:00:03]} 11. Be3 {[%emt 0:00:03]} b5 {[%emt 0:00:03]} 12. Rc1 {[%emt 0:00:15]} Qb8 {[%emt 0:01:21]} 13. Bb1 {[%emt 0:01:04]} Bb7 {[%emt 0:00:05]} 14. Ne2 {[%emt 0:00:49]} Na5 {[%emt 0:01:58]} 15. Ng3 {[%emt 0:00:36]} Nc4 {[%emt 0:00:26]} 16. Qe2 {[%emt 0:00:12]} Qd8 {[%emt 0:00:23]} 17. b3 {[%emt 0:00:18]} Nxe3 {[%emt 0:00:14]} 18. Qxe3 {[%emt 0:00:06]} Qb6 {[%emt 0:00:20]} 19. Qd3 {[%emt 0:01:36]} Rfd8 {[%emt 0:00:31]} 20. Nd2 {[%emt 0:00:36]} Rab8 {[%emt 0:01:21]} 21. Kh2 {[%emt 0:00:47]} g6 {[%emt 0:00:30]} 22. f4 {[%emt 0:00:10]} Rbc8 {[%emt 0:00:25]} 23. Qe3 {[%emt 0:00:48]} e5 {[%emt 0:00:08]} 24. Nf3 {[%emt 0:00:17]} exd4 {[%emt 0:00:39]} 25. Qxd4 {[%emt 0:00:20]} Qxd4 {[%emt 0:00:04]} 26. Nxd4 {[%emt 0:00:02]} Kg7 {[%emt 0:00:08]} 27. Nf3 {[%emt 0:00:53]} Rc5 {[%emt 0:00:13]} 28. e5 {[%emt 0:01:49]} dxe5 {[%emt 0:00:04]} 29. fxe5 {[%emt 0:00:12]} Nd7 {[%emt 0:00:35]} 30. Rce1 {[%emt 0:00:20]} Bxf3 {[%emt 0:00:11]} 31. Rxf3 {[%emt 0:00:03]} Rxe5 {[%emt 0:00:12]} 32. Ref1 {[%emt 0:00:07]} f5 {[%emt 0:00:04]} 33. Rd1 {[%emt 0:00:15]} Nf6 {[%emt 0:00:11]} 34. Rxd8 {[%emt 0:00:05]} Bxd8 {[%emt 0:00:01]} 35. Rd3 {[%emt 0:00:03]} Bc7 {[%emt 0:00:04]} 36. Rc3 {[%emt 0:00:08]} Re7 {[%emt 0:00:12]} 37. Kg1 {[%emt 0:00:12]} Bxg3 {[%emt 0:00:03]} 38. Rxg3 {[%emt 0:00:03]} Re1+ {[%emt 0:00:02]} 39. Kf2 {[%emt 0:00:04]} Rxb1 {[%emt 0:00:02]} 40. Re3 {[%emt 0:00:04]} Ne4+ {[%emt 0:00:02]} 41. Ke2 {[%emt 0:00:07]} Rb2+ {[%emt 0:00:02]} 42. Kd3 {[%emt 0:00:02]} Rd2# {[%emt 0:00:03]} 0-1

[Event "2nd FIDE WCC Rapid G12"]
[Site "Minsk"]
[Date "2018.06.22"]
[Round "1"]
[White "Ivanytska, Liudmyla"]
[Black "Thai, Ngoc Tuong Minh"]
[Result "0-1"]
[ECO "B72"]
[WhiteElo "1545"]
[BlackElo "1384"]
[Annotator "NA RC"]
[PlyCount "122"]
[EventDate "2018.06.22"]
[EventType "rapid"]
[EventCountry "BLR"]
[SourceTitle "playchess.com"]
[Source "ChessBase"]
[SourceQuality "1"]
[TimeControl "600+5"]

1. e4 {[%emt 0:00:00]} c5 {[%emt 0:00:02]} 2. Nf3 {[%emt 0:00:00]} d6 {[%emt 0:00:03]} 3. Nc3 {[%emt 0:00:01]} Nf6 {[%emt 0:00:05]} 4. d4 {[%emt 0:00:01]} cxd4 {[%emt 0:00:02]} 5. Nxd4 {[%emt 0:00:01]} g6 {[%emt 0:00:02]} 6. Be3 {[%emt 0:00:01]} Bg7 {[%emt 0:00:01]} 7. Bc4 {[%emt 0:00:02]} Nc6 {[%emt 0:00:05]} 8. O-O {[%emt 0:00:03]} O-O {[%emt 0:00:03]} 9. Be2 {[%emt 0:00:08]} Bd7 {[%emt 0:00:09]} 10. a3 {[%emt 0:00:03]} Rc8 {[%emt 0:00:04]} 11. f3 {[%emt 0:00:03]} Qb6 {[%emt 0:00:29]} 12. Rb1 {[%emt 0:00:13]} a6 {[%emt 0:03:33]} 13. Bf2 {[%emt 0:00:11]} Qc7 {[%emt 0:00:09]} 14. Kh1 {[%emt 0:00:09]} Ne5 {[%emt 0:00:03]} 15. Bg3 {[%emt 0:00:10]} Nc4 {[%emt 0:00:04]} 16. Bxc4 {[%emt 0:00:03]} Qxc4 {[%emt 0:00:02]} 17. Nb3 {[%emt 0:00:12]} Nh5 {[%emt 0:00:35]} 18. Nd2 {[%emt 0:00:35]} Nxg3+ {[%emt 0:00:14]} 19. hxg3 {[%emt 0:00:02]} Qc5 {[%emt 0:00:15]} 20. Nd5 {[%emt 0:00:02]} Rfe8 {[%emt 0:00:13]} 21. c4 {[%emt 0:00:08]} e6 {[%emt 0:00:15]} 22. b4 {[%emt 0:00:05]} Qd4 {[%emt 0:00:28]} 23. Nf4 {[%emt 0:00:02]} Bh6 {[%emt 0:00:40]} 24. Kh2 {[%emt 0:00:21]} Qe5 {[%emt 0:00:11]} 25. Nd3 {[%emt 0:00:38]} Qh5+ 26. Kg1 Be3+ {[%emt 0:00:14]} 27. Nf2 {[%emt 0:00:07]} Qh6 {[%emt 0:00:51]} 28. Rb2 {[%emt 0:00:20]} b5 {[%emt 0:00:11]} 29. cxb5 {[%emt 0:00:50]} Bxb5 {[%emt 0:00:02]} 30. Re1 {[%emt 0:00:05]} d5 {[%emt 0:00:27]} 31. f4 {[%emt 0:01:12]} Bxf2+ {[%emt 0:00:30]} 32. Kxf2 {[%emt 0:00:02]} Qg7 {[%emt 0:00:18]} 33. e5 {[%emt 0:00:29]} f6 {[%emt 0:00:22]} 34. Nf3 {[%emt 0:00:02]} Qa7+ {[%emt 0:00:07]} 35. Qd4 {[%emt 0:00:23]} Qxd4+ {[%emt 0:00:09]} 36. Nxd4 {[%emt 0:00:02]} fxe5 {[%emt 0:00:17]} 37. Rxe5 {[%emt 0:00:02]} Kf7 {[%emt 0:00:01]} 38. Ra2 {[%emt 0:00:19]} Rc4 {[%emt 0:00:14]} 39. Nf3 {[%emt 0:00:18]} h6 {[%emt 0:00:13]} 40. Re1 {[%emt 0:00:07]} Rc3 {[%emt 0:00:21]} 41. Ne5+ {[%emt 0:00:04]} Kf6 {[%emt 0:00:02]} 42. a4 {[%emt 0:00:02]} Bc4 {[%emt 0:00:05]} 43. Nxc4 {[%emt 0:00:24]} Rxc4 {[%emt 0:00:05]} 44. b5 {[%emt 0:00:02]} axb5 45. axb5 {[%emt 0:00:01]} Rb4 {[%emt 0:00:04]} 46. Ra5 {[%emt 0:00:02]} d4 {[%emt 0:00:20]} 47. Re5 {[%emt 0:00:09]} d3 {[%emt 0:00:10]} 48. Ra2 {[%emt 0:00:14]} Rd8 {[%emt 0:00:07]} 49. Ke3 {[%emt 0:00:07]} Rb3 {[%emt 0:00:12]} 50. Kd2 {[%emt 0:00:04]} g5 {[%emt 0:00:14]} 51. Rc5 {[%emt 0:00:06]} gxf4 {[%emt 0:00:06]} 52. gxf4 {[%emt 0:00:01]} Rb4 {[%emt 0:00:02]} 53. g3 {[%emt 0:00:02]} Re4 {[%emt 0:00:03]} 54. Ra3 {[%emt 0:00:12]} Re2+ {[%emt 0:00:02]} 55. Kd1 {[%emt 0:00:02]} d2 {[%emt 0:00:10]} 56. Re5 {[%emt 0:00:01]} Rf2 {[%emt 0:00:13]} 57. Ree3 {[%emt 0:01:46]} Rf1+ {[%emt 0:00:04]} 58. Kc2 {[%emt 0:00:03]} d1=Q+ {[%emt 0:00:06]} 59. Kc3 {[%emt 0:00:08]} Qd4+ {[%emt 0:00:03]} 60. Kc2 {[%emt 0:00:06]} Rf2+ {[%emt 0:00:02]} 61. Kb3 {[%emt 0:00:05]} Rb2# {[%emt 0:00:05]} 0-1

[Event "2nd FIDE WCC Rapid G12"]
[Site "Minsk"]
[Date "2018.06.22"]
[Round "1"]
[White "Kaliakhmet, Eldana"]
[Black "Cherepanova, Evita"]
[Result "0-1"]
[ECO "E67"]
[WhiteElo "1360"]
[BlackElo "1604"]
[Annotator "NA RC"]
[PlyCount "100"]
[EventDate "2018.06.22"]
[EventType "rapid"]
[EventCountry "BLR"]
[SourceTitle "playchess.com"]
[Source "ChessBase"]
[SourceQuality "1"]
[TimeControl "600+5"]

1. Nf3 {[%emt 0:00:00]} Nf6 {[%emt 0:00:01]} 2. d4 {[%emt 0:00:00]} g6 {[%emt 0:00:02]} 3. c4 {[%emt 0:00:01]} Bg7 {[%emt 0:00:02]} 4. g3 {[%emt 0:00:01]} d6 {[%emt 0:00:01]} 5. Bg2 {[%emt 0:00:01]} O-O {[%emt 0:00:02]} 6. O-O {[%emt 0:00:03]} Nbd7 {[%emt 0:00:06]} 7. Nc3 {[%emt 0:00:06]} e5 {[%emt 0:00:11]} 8. dxe5 {[%emt 0:00:56]} dxe5 {[%emt 0:00:03]} 9. e4 {[%emt 0:00:20]} a5 {[%emt 0:01:15]} 10. Bg5 {[%emt 0:00:30]} Qe8 {[%emt 0:01:14]} 11. Re1 {[%emt 0:00:34]} h6 {[%emt 0:00:14]} 12. Bc1 {[%emt 0:00:41]} b6 {[%emt 0:02:24]} 13. Nb5 {[%emt 0:01:54]} Qd8 {[%emt 0:00:51]} 14. Nc3 {[%emt 0:01:07]} Bb7 {[%emt 0:00:29]} 15. b3 {[%emt 0:00:03]} Re8 {[%emt 0:00:33]} 16. Bb2 {[%emt 0:00:07]} Nc5 {[%emt 0:00:05]} 17. Qxd8 {[%emt 0:00:35]} Raxd8 {[%emt 0:00:01]} 18. Nd5 {[%emt 0:00:36]} Nxd5 {[%emt 0:00:44]} 19. exd5 {[%emt 0:00:06]} Nd3 {[%emt 0:00:02]} 20. Re3 {[%emt 0:00:47]} Nxb2 {[%emt 0:00:09]} 21. Rb1 {[%emt 0:00:31]} e4 {[%emt 0:00:03]} 22. Nd2 {[%emt 0:00:09]} f5 {[%emt 0:00:14]} 23. Bf1 {[%emt 0:00:49]} Bd4 {[%emt 0:00:14]} 24. Ree1 {[%emt 0:00:23]} Nd3 {[%emt 0:00:02]} 25. Re2 {[%emt 0:00:13]} Nxf2 {[%emt 0:00:07]} 26. Rxf2 {[%emt 0:00:10]} Bxf2+ 27. Kxf2 {[%emt 0:00:01]} e3+ {[%emt 0:00:02]} 28. Ke2 {[%emt 0:00:16]} exd2+ {[%emt 0:00:02]} 29. Kxd2 {[%emt 0:00:34]} c6 {[%emt 0:00:07]} 30. Kc3 {[%emt 0:00:02]} cxd5 {[%emt 0:00:02]} 31. cxd5 {[%emt 0:00:02]} Rc8+ {[%emt 0:00:11]} 32. Kb2 {[%emt 0:00:09]} Bxd5 {[%emt 0:00:04]} 33. Rd1 {[%emt 0:00:03]} Bf7 {[%emt 0:00:13]} 34. Bb5 {[%emt 0:00:04]} Red8 {[%emt 0:00:09]} 35. Re1 {[%emt 0:00:09]} Rd2+ {[%emt 0:00:05]} 36. Ka3 {[%emt 0:00:04]} Rcc2 {[%emt 0:00:08]} 37. Ra1 {[%emt 0:00:06]} Be6 {[%emt 0:00:16]} 38. Bc4 {[%emt 0:00:09]} Bxc4 {[%emt 0:00:15]} 39. bxc4 {[%emt 0:00:02]} Rxc4 {[%emt 0:00:18]} 40. Kb3 {[%emt 0:00:02]} Rdc2 {[%emt 0:00:08]} 41. Rd1 {[%emt 0:00:04]} R4c3+ {[%emt 0:00:17]} 42. Ka4 {[%emt 0:00:02]} Rxa2+ {[%emt 0:00:24]} 43. Kb5 {[%emt 0:00:02]} Rb2+ {[%emt 0:00:04]} 44. Ka6 {[%emt 0:00:04]} Kf7 {[%emt 0:00:24]} 45. Rd7+ {[%emt 0:00:04]} Ke6 {[%emt 0:00:01]} 46. Rh7 {[%emt 0:00:02]} a4 {[%emt 0:00:13]} 47. Rxh6 {[%emt 0:00:03]} a3 {[%emt 0:00:19]} 48. Rxg6+ {[%emt 0:00:03]} Kf7 {[%emt 0:00:00]} 49. Rd6 {[%emt 0:00:06]} a2 {[%emt 0:00:02]} 50. Rd1 {[%emt 0:00:04]} Rb1 {[%emt 0:00:03]} 0-1